bitfinex/quotes_ETHUSD_20250629
["timestamp","ask_amount","ask_price","bid_price","bid_amount"]
[1751235734314,4.06378361,2456.5,2455.8,3.25749717]
[1751235734315,0.8071,2456.5,2455.8,3.25749717]
[1751235734608,0.8071,2456.5,2455.5,3.43105995]
[1751235734609,0.7854,2457.4,2456.4,0.1731]
[1751235734808,0.7854,2457.4,2456.5,2.023]
[1751235735003,0.7854,2457.4,2457.1,3.25578548]
[1751235735310,3.25495813,2457.8,2457.2,3.2556828]
[1751235735311,0.8041,2457.7,2457.2,3.2556828]
[1751235735521,0.40590581,2457.6,2457.1,3.25581332]
[1751235735721,4.05920076,2457.7,2457.1,3.25581332]
[1751235735911,0.8041,2457.7,2456.9,3.25611683]
[1751235736111,4.05927069,2457.7,2457.1,3.25577915]
[1751235736313,0.001,2457.2,2457.1,3.25577915]
[1751235736518,0.001,2457.2,2457.0,3.42904361]
[1751235736700,0.001,2457.2,2457.0,3.25594361]
[1751235736901,0.001,2457.2,2456.9,3.2560251]
[1751235737101,0.001,2457.2,2457.1,3.25587074]
[1751235737840,0.001,2457.2,2457.1,5.45097074]
[1751235739331,0.001,2457.2,2457.1,5.65417074]
[1751235740426,0.001,2457.2,2457.1,25.83117074]
[1751235740601,0.001,2457.2,2457.1,33.08847074]
[1751235741043,0.001,2457.2,2457.1,25.83117074]
[1751235741405,0.001,2457.2,2457.1,33.15587074]
[1751235741706,0.001,2457.2,2457.1,32.95417074]
[1751235743635,0.001,2457.2,2457.1,32.95117074]
[1751235743833,0.001,2457.2,2457.1,3.63217074]
[1751235744035,0.001,2457.2,2457.1,5.48107074]
[1751235744634,0.001,2457.2,2457.1,5.65417074]
[1751235745918,0.001,2457.2,2457.1,12.76217074]
[1751235746607,0.001,2457.2,2457.1,45.73101874]
[1751235747105,0.001,2457.2,2457.1,38.36205074]
[1751235747666,0.001,2457.2,2457.1,28.43535074]
[1751235747942,0.001,2457.2,2457.1,22.73417074]
[1751235751955,0.001,2457.6,2457.5,12.55454079]
[1751235752763,0.001,2457.6,2457.5,12.35134079]
[1751235753321,0.001,2457.6,2457.5,12.34934079]
[1751235755352,0.001,2457.6,2457.5,1.998]
[1751235755550,0.001,2457.6,2457.4,1.998]
[1751235755925,0.001,2457.6,2457.4,9.088]
[1751235756126,0.001,2457.6,2457.4,12.34343966]
[1751235756755,0.001,2457.6,2457.5,3.25534079]
[1751235756949,0.001,2457.6,2457.4,9.088]
[1751235757325,0.001,2457.6,2457.4,1.998]
[1751235757527,1.3176,2457.4,2456.6,13.42950389]
[1751235757748,0.55,2457.2,2456.7,7.088]
[1751235757936,0.55,2457.2,2456.8,3.25619847]
[1751235758344,0.55,2457.3,2456.6,12.171]
[1751235758561,0.55,2456.8,2456.6,1.998]
[1751235758957,3.25640491,2456.7,2456.2,9.083]
[1751235759122,4.26373611,2456.8,2456.2,5.25501653]
[1751235759329,11.2783756,2456.8,2456.2,5.25504733]
[1751235759556,3.80640788,2456.7,2456.2,1.998]
[1751235759740,0.55,2456.7,2456.2,1.998]
[1751235759934,0.7676,2456.9,2456.2,1.998]
[1751235760258,0.55,2456.8,2456.5,3.2565951]
[1751235760755,0.7676,2456.9,2456.7,3.25632159]
[1751235761133,1.3176,2456.9,2456.8,0.002]
[1751235761733,1.3176,2456.9,2456.8,3.25826831]
[1751235762032,0.55,2457.1,2456.9,3.25601589]
[1751235762238,0.55,2457.1,2457.0,3.25600325]
[1751235762464,0.55,2457.1,2456.8,0.002]
[1751235762760,0.55,2457.1,2457.0,0.2032]
[1751235763145,0.8266,2457.2,2457.0,0.2032]
[1751235763629,0.8266,2457.2,2456.9,3.25613578]
[1751235763829,0.8266,2457.2,2457.1,0.2032]
[1751235764777,1.0193,2457.6,2457.3,3.25552044]
[1751235765075,0.8161,2457.6,2457.3,3.25560401]
[1751235765232,0.8161,2457.6,2457.4,3.45865125]
[1751235765428,0.8161,2457.6,2457.4,0.2032]
[1751235765860,0.8161,2457.6,2457.5,3.25534079]
[1751235766049,0.001,2457.6,2457.5,3.25534079]
[1751235766539,0.001,2457.6,2457.4,3.25547326]
[1751235766739,0.001,2457.6,2457.5,3.25534079]
[1751235767881,0.7966,2457.6,2456.8,0.002]
[1751235768035,7.81025233,2456.9,2456.8,0.002]
[1751235768240,0.7956,2456.9,2456.8,0.002]
[1751235768869,1.3456,2456.9,2456.8,0.002]
[1751235769090,14.60173578,2456.9,2456.8,0.002]
[1751235769436,0.55,2456.1,2455.7,3.25772637]
[1751235769636,0.55,2456.1,2455.6,3.25779935]
[1751235769864,0.55,2456.1,2455.6,3.25785958]
[1751235770786,0.55,2456.1,2455.7,3.25763432]
[1751235770985,1.71172476,2456.1,2455.6,3.25781022]
[1751235771169,1.71172476,2456.1,2455.7,3.25771999]
[1751235771788,0.55,2456.1,2455.9,3.25745794]
[1751235772270,3.25643006,2456.7,2456.1,3.25711334]
[1751235772471,0.7923,2456.9,2456.0,1.998]
[1751235772673,0.7923,2456.9,2456.3,3.25681795]
[1751235772863,0.7923,2456.9,2456.0,1.998]
[1751235773072,0.7923,2456.9,2456.8,3.25626831]
[1751235773278,0.8006,2457.3,2456.6,3.25653342]
[1751235773477,0.8006,2457.3,2456.8,3.25626831]
[1751235773782,0.8006,2457.3,2457.1,3.25585428]
[1751235773976,0.8006,2457.3,2457.1,3.25575355]
[1751235774164,0.8006,2457.3,2457.0,3.25592746]
[1751235774369,0.8006,2457.3,2457.1,3.25585757]
[1751235774686,0.8006,2457.3,2457.2,3.25573823]
[1751235774887,0.001,2457.6,2457.3,3.25553157]
[1751235775079,0.87946959,2457.6,2457.1,3.25582819]
[1751235775658,0.55,2457.5,2457.1,3.25583595]
[1751235775992,0.55,2457.5,2457.4,0.2032]
[1751235777388,3.80534079,2457.5,2456.9,3.25610832]
[1751235777589,0.55,2457.4,2457.1,0.2032]
[1751235777891,0.55,2457.2,2456.9,0.2032]
[1751235778390,0.7671,2457.3,2456.9,3.25603931]
[1751235778585,0.7532,2457.2,2456.8,0.2032]
[1751235778974,0.55,2457.2,2457.0,0.2032]
[1751235779358,0.7671,2457.3,2456.6,3.25653342]
[1751235779562,0.7671,2457.3,2457.1,0.2032]
[1751235779763,0.2042,2457.6,2457.2,3.25573823]
[1751235780064,4.06291846,2457.6,2457.3,0.2032]
[1751235780260,0.55,2457.5,2457.3,0.2032]
[1751235781783,0.55,2457.5,2457.0,3.25592879]
[1751235781977,0.55,2457.5,2457.1,0.2032]
[1751235782596,3.8053473,2457.5,2457.1,0.2032]
[1751235782808,10.82039056,2457.2,2457.1,0.2032]
[1751235782976,10.82039056,2457.2,2456.6,5.23844716]
[1751235782977,0.55,2457.1,2457.0,0.2032]
[1751235783299,1.3411,2457.1,2456.7,3.45958737]
[1751235783466,1.3411,2457.1,2456.7,3.45958064]
[1751235783662,4.596981,2457.1,2456.7,0.2032]
[1751235783997,2.9968171,2457.1,2456.7,0.2032]
[1751235784401,6.25270147,2457.1,2456.7,0.2032]
[1751235784576,1.3411,2457.1,2456.9,3.2560079]
[1751235784771,1.3411,2457.1,2456.9,0.2032]
[1751235786812,1.3411,2457.1,2456.8,0.2032]
[1751235787000,0.55,2457.3,2457.0,0.2032]
[1751235789274,3.8056535,2457.3,2457.0,0.2032]
[1751235789480,0.55,2457.1,2457.0,0.2032]
[1751235789990,0.55,2457.3,2457.0,0.2032]
[1751235790195,0.55,2457.3,2457.0,3.45915124]
[1751235790400,0.001,2457.6,2457.2,0.2032]
[1751235790811,0.001,2457.6,2457.5,3.45854079]
[1751235791506,0.001,2457.6,2457.5,3.63164079]
[1751235792717,0.001,2457.6,2457.5,10.71164079]
[1751235793403,0.001,2457.6,2457.5,3.63164079]
[1751235793786,0.001,2457.6,2457.5,5.61264079]
[1751235794288,0.001,2457.6,2457.5,15.61264079]
[1751235796495,0.001,2457.6,2457.5,12.67564079]
[1751235797697,0.001,2457.6,2457.5,3.63164079]
[1751235797902,0.001,2457.6,2457.5,12.67164079]
[1751235799012,0.001,2457.6,2457.5,9.4163]
[1751235799179,0.001,2457.6,2457.5,12.67164079]
[1751235801222,0.001,2457.6,2457.5,3.63164079]
[1751235801400,0.001,2457.6,2457.5,12.48454079]
[1751235803898,0.001,2457.6,2457.5,22.65764079]
[1751235804127,0.001,2457.6,2457.5,52.65764079]
[1751235805397,0.001,2458.2,2458.1,3.25454619]
[1751235805616,0.001,2458.2,2458.1,12.47574619]
[1751235806015,0.001,2458.2,2458.1,28.10874619]
[1751235806424,0.001,2458.2,2458.1,25.18677719]
[1751235807202,0.001,2458.2,2458.1,52.64784619]
[1751235807597,0.001,2458.2,2458.1,52.9453672]
[1751235807797,0.00831945,2458.3,2458.2,13.25441379]
[1751235808122,0.00831945,2458.3,2458.2,43.25441379]
[1751235809027,0.006,2458.6,2458.2,43.42551379]
[1751235809232,0.006,2458.6,2458.5,43.25401667]
[1751235809525,0.006,2458.6,2458.5,20.30014067]
[1751235809725,0.006,2458.6,2458.5,27.15849767]
[1751235810023,0.006,2458.6,2458.5,25.26349767]
[1751235810227,0.006,2458.6,2458.5,32.97434867]
[1751235810428,0.006,2458.6,2458.5,33.13714867]
[1751235811343,0.006,2458.6,2458.5,52.60681546]
[1751235811707,0.47521008,2460.0,2458.5,52.60681546]
[1751235811708,0.47521008,2460.0,2459.8,3.25229693]
[1751235811904,0.47521008,2460.0,2459.9,12.23016472]
[1751235812139,0.47521008,2460.0,2459.9,12.43336472]
[1751235812828,0.47521008,2460.0,2459.9,31.44257372]
[1751235813006,0.47521008,2460.0,2459.9,21.36616472]
[1751235813209,0.47521008,2460.0,2459.9,12.59016472]
[1751235813643,0.47521008,2460.0,2459.9,12.43036472]
[1751235814238,0.47521008,2460.0,2459.9,52.58716472]
[1751235814439,0.2170636,2461.2,2461.1,3.250579]
[1751235814746,1.0284636,2461.2,2461.1,1.953]
[1751235814916,0.2170636,2461.2,2461.1,12.242579]
[1751235815640,0.2170636,2461.2,2461.1,9.006]
[1751235816145,0.2170636,2461.2,2461.1,3.250579]
[1751235816314,0.2170636,2461.2,2461.1,52.254579]
[1751235816642,0.02758347,2461.2,2461.1,53.844579]
[1751235816817,0.02758347,2461.2,2461.1,43.553261]
[1751235817415,0.02758347,2461.2,2461.1,40.790191]
[1751235817614,0.02758347,2461.2,2461.1,39.200191]
[1751235818233,0.02758347,2461.2,2461.1,34.763338]
[1751235818543,0.02758347,2461.2,2461.1,40.34112774]
[1751235818858,0.02758347,2461.2,2461.1,34.74750974]
[1751235819162,0.001,2462.2,2462.1,3.24925876]
[1751235819441,0.7928,2463.1,2462.1,3.24925876]
[1751235819442,7.80745233,2463.1,2462.1,29.181]
[1751235819651,0.78074523,2463.0,2462.1,10.158]
[1751235819837,7.77585233,2462.7,2462.1,10.158]
[1751235820144,0.7612,2462.7,2462.6,3.24859904]
[1751235820349,0.7612,2463.0,2462.9,3.24816938]
[1751235820514,0.7612,2463.0,2462.9,9.039]
[1751235820926,0.7612,2463.0,2462.1,13.4072396]
[1751235820927,1.16211425,2463.0,2462.1,13.4072396]
[1751235821126,3.79834396,2462.8,2462.2,12.29003011]
[1751235821327,0.55,2462.8,2462.2,9.041]
[1751235821667,3.79855539,2462.7,2462.2,9.041]
[1751235822018,0.55,2462.7,2462.2,9.041]
[1751235822248,0.55,2462.7,2462.4,3.24878901]
[1751235822460,0.7892,2462.8,2462.7,3.24846712]
[1751235822761,0.7892,2462.8,2462.7,9.037]
[1751235823055,1.3392,2462.8,2462.7,9.037]
[1751235823241,0.7892,2462.8,2462.7,9.037]
[1751235823955,1.3392,2462.8,2462.7,12.28546712]
[1751235824153,1.3392,2462.8,2462.7,9.037]
[1751235824378,0.55,2462.7,2462.1,13.40716091]
[1751235824535,1.06374126,2462.7,2462.1,10.158]
[1751235824849,0.55,2462.7,2462.6,0.2024]
[1751235825698,0.7892,2462.8,2462.7,3.24846712]
[1751235825966,0.768,2463.1,2462.7,2.1524]
[1751235826164,0.55,2463.0,2462.8,7.082]
[1751235826365,0.55,2463.0,2462.9,3.24820333]
[1751235826572,0.55,2463.0,2462.9,3.45060333]
[1751235826772,1.52352503,2463.4,2463.2,3.2477323]
[1751235827071,0.76712503,2463.4,2463.3,5.19767588]
[1751235828072,1.31712503,2463.4,2463.3,5.19767588]
[1751235829046,0.55,2463.3,2463.1,3.24786397]
[1751235829405,1.31712503,2463.4,2463.0,10.33407145]
[1751235829406,0.55,2463.1,2463.0,10.33407145]
[1751235829674,0.55,2463.1,2463.0,12.28407145]
[1751235829881,0.55,2463.3,2463.0,9.036]
[1751235830096,0.55,2463.3,2463.2,3.24780772]
[1751235830236,0.76712503,2463.4,2463.2,3.24780772]
[1751235830444,1.31712503,2463.4,2463.3,10.33667588]
[1751235830746,0.55,2463.3,2463.2,10.33472948]
[1751235831190,0.76712503,2463.4,2463.3,3.24767588]
[1751235831348,0.55,2463.3,2463.2,10.33480422]
[1751235831983,0.76712503,2463.4,2463.3,3.24767588]
[1751235832542,0.76712503,2463.4,2463.3,12.30067588]
[1751235833180,4.59507588,2463.3,2463.2,1.0]
[1751235833382,2.90983686,2463.3,2462.8,5.19831275]
[1751235833680,2.90983686,2463.3,2463.2,3.24780772]
[1751235833681,1.3474,2463.3,2463.2,3.24780772]
[1751235833865,0.76712503,2463.4,2463.3,3.24767588]
[1751235834272,0.76712503,2463.4,2463.2,3.24774859]
[1751235834474,0.76712503,2463.4,2463.3,9.082]
[1751235834679,0.76712503,2463.4,2463.3,12.32967588]
[1751235834854,0.76712503,2463.4,2463.3,9.079]
[1751235835679,0.55,2463.3,2463.2,7.129]
[1751235836562,0.55,2463.3,2463.2,7.125]
[1751235836761,0.55,2463.3,2463.2,0.2024]
[1751235836963,1.3026,2463.3,2463.2,0.2024]
[1751235837166,4.55027588,2463.3,2463.2,0.2024]
[1751235837364,1.3026,2463.3,2463.2,0.2024]
[1751235838168,4.55027588,2463.3,2463.2,0.2024]
[1751235838478,1.3026,2463.3,2463.1,0.2024]
[1751235838663,4.55028877,2463.3,2463.1,0.2024]
[1751235839178,1.3026,2463.3,2463.1,0.2024]
[1751235839399,0.7526,2463.3,2463.1,0.2024]
[1751235839569,0.7526,2463.3,2463.2,0.2024]
[1751235839770,3.24803698,2463.1,2462.9,2.013]
[1751235839972,0.55,2462.9,2462.2,10.15]
[1751235840284,3.79824946,2462.9,2462.8,0.2024]
[1751235840499,3.79824946,2462.9,2462.2,10.15]
[1751235840500,0.55,2462.7,2462.2,10.15]
[1751235840786,0.55,2462.5,2462.3,0.2024]
[1751235840988,0.8077,2462.6,2462.3,0.2024]
[1751235840989,0.8077,2462.6,2462.5,3.24873096]
[1751235841190,0.8077,2462.6,2462.4,3.45118736]
[1751235841556,0.8077,2462.6,2462.4,0.2024]
[1751235841557,0.55,2462.5,2462.4,0.2024]
[1751235842177,0.8077,2462.6,2462.5,3.24873096]
[1751235842359,1.3577,2462.6,2462.5,3.24873096]
[1751235842560,0.764,2463.1,2462.8,3.24826644]
[1751235842885,0.764,2463.1,2463.0,3.45047145]
[1751235843082,0.764,2463.1,2463.0,0.2024]
[1751235843268,0.764,2463.1,2463.0,3.45047145]
[1751235843474,0.76712503,2463.4,2463.3,3.24767588]
[1751235843685,0.76712503,2463.4,2463.3,5.46307588]
[1751235844486,0.76712503,2463.4,2463.3,3.45007588]
[1751235844683,0.76712503,2463.4,2463.3,0.2024]
[1751235845196,0.55,2463.2,2462.6,12.161]
[1751235845393,0.55,2463.2,2462.9,0.2024]
[1751235845596,4.7071536,2463.2,2462.9,0.2024]
[1751235845784,0.55,2463.0,2462.8,0.2024]
[1751235846097,0.8184,2462.9,2462.8,0.2024]
[1751235847199,4.61660333,2462.9,2462.8,0.2024]
[1751235847696,1.3684,2462.9,2462.8,0.2024]
[1751235847900,0.55,2462.9,2462.8,0.2024]
[1751235848205,0.55,2463.1,2462.8,3.45068893]
[1751235848407,0.7648,2463.2,2462.9,7.124]
[1751235848592,0.76712503,2463.4,2463.2,3.24772363]
[1751235848793,0.76712503,2463.4,2463.2,5.26080772]
[1751235848980,0.76712503,2463.4,2463.3,3.45007588]
[1751235849186,0.76712503,2463.4,2463.3,0.2024]
[1751235850206,1.31712503,2463.4,2463.3,0.2024]
[1751235850403,1.55186389,2463.4,2463.3,0.2024]
[1751235850572,1.31712503,2463.4,2463.3,0.2024]
[1751235851372,0.76712503,2463.4,2463.3,3.45007588]
[1751235851589,0.76712503,2463.4,2463.3,0.2024]
[1751235852473,0.76712503,2463.4,2463.3,3.45007588]
[1751235852679,0.76712503,2463.4,2463.3,0.2024]
[1751235853707,1.31712503,2463.4,2463.3,0.2024]
[1751235853908,4.56466907,2463.4,2463.3,0.2024]
[1751235854210,4.56466907,2463.4,2462.9,2.013]
[1751235854211,1.3658,2463.0,2462.9,2.013]
[1751235854680,1.3658,2463.0,2462.9,2.2154]
[1751235854884,0.55,2463.0,2462.9,2.2154]
[1751235855388,1.3353,2463.0,2462.9,0.2024]
[1751235855591,5.3664907,2463.0,2462.6,19.267]
[1751235855901,5.36656356,2463.0,2462.8,0.2024]
[1751235856311,0.55,2462.9,2462.8,0.2024]
[1751235856609,3.79820333,2462.9,2462.8,0.2024]
[1751235856810,0.55,2462.9,2462.8,0.2024]
[1751235857218,0.7853,2463.0,2462.6,12.161]
[1751235857712,0.7818,2463.3,2463.0,3.24799124]
[1751235857915,0.55,2463.2,2462.9,10.35016008]
[1751235858116,0.55,2463.2,2462.9,7.102]
[1751235858438,0.55,2463.2,2462.9,10.35020124]
[1751235858915,0.55,2463.2,2462.9,7.102]
[1751235859112,3.79781273,2463.2,2462.8,9.118]
[1751235859284,0.55,2463.2,2462.8,9.118]
[1751235859487,0.55,2463.0,2462.6,10.148]
[1751235859685,1.3407,2462.9,2462.6,12.161]
[1751235860098,0.55,2462.7,2462.6,12.161]
[1751235860417,0.55,2462.7,2462.6,2.013]
[1751235860614,3.79846712,2462.7,2462.6,2.013]
[1751235861017,0.55,2462.7,2462.6,2.013]
[1751235861218,3.79846712,2462.7,2462.6,2.013]
[1751235861385,0.55,2462.4,2462.1,0.00507568]
[1751235861586,0.7985,2462.3,2462.1,0.00507568]
[1751235861808,4.04750248,2462.3,2462.1,0.00507568]
[1751235862322,3.24912679,2462.2,2462.1,0.00507568]
[1751235862687,0.7985,2462.3,2462.1,0.00507568]
[1751235863317,3.79912679,2462.2,2462.1,0.00507568]
[1751235863621,4.63879148,2462.2,2462.1,0.00507568]
[1751235864421,4.63879148,2462.2,2462.0,2.015]
[1751235864422,3.79925876,2462.1,2462.0,0.002]
[1751235864615,1.3457,2462.1,2462.0,0.002]
[1751235864799,4.59495876,2462.1,2462.0,0.002]
[1751235867300,14.59495876,2462.1,2462.0,0.002]
[1751235867504,16.37936848,2462.1,2462.0,0.002]
[1751235868714,1.3457,2462.1,2462.0,0.002]
[1751235869024,0.7957,2462.1,2462.0,0.002]
[1751235869404,1.0231,2462.4,2462.0,0.2044]
[1751235870008,3.79901547,2462.3,2462.0,0.2044]
[1751235870325,0.55,2462.3,2462.0,0.2044]
[1751235871104,1.0231,2462.4,2462.0,3.4537829]
[1751235871305,0.8207,2462.4,2462.2,3.45145339]
[1751235871528,0.8207,2462.4,2462.2,0.2024]
[1751235871734,3.24899484,2462.3,2462.2,0.2024]
[1751235871930,1.303,2462.1,2462.0,0.002]
[1751235872225,4.55225876,2462.1,2462.0,0.002]
[1751235872633,0.753,2462.8,2462.0,0.002]
[1751235872796,0.753,2462.8,2462.6,0.2024]
[1751235872996,0.55,2462.7,2462.6,0.2024]
[1751235873209,0.55,2462.7,2462.3,0.2024]
[1751235873210,3.79846712,2462.7,2462.3,0.2024]
[1751235873410,4.5986788,2462.7,2462.3,0.2024]
[1751235873628,3.24860714,2462.6,2462.3,0.2024]
[1751235873845,4.59874242,2462.7,2462.3,0.2024]
[1751235874156,4.59871096,2462.7,2462.3,0.2024]
[1751235874306,0.55,2462.4,2462.3,0.2024]
[1751235874500,3.79886289,2462.4,2462.0,0.002]
[1751235874732,0.55,2462.1,2462.0,0.002]
[1751235875143,1.53444854,2462.4,2462.0,3.25139073]
[1751235875450,0.55,2462.3,2462.0,3.4537187]
[1751235876020,0.55,2462.3,2462.0,0.2044]
[1751235876216,0.55,2462.3,2462.0,3.45378388]
[1751235876442,0.55,2462.3,2462.0,0.2044]
[1751235876602,0.7567,2462.7,2462.4,3.24878617]
[1751235876971,0.7567,2462.7,2462.5,3.24870203]
[1751235877134,0.55,2462.6,2462.5,3.24870203]
[1751235877302,0.7567,2463.0,2462.4,3.24873495]
[1751235877497,0.7567,2463.0,2462.1,1.987]
[1751235877498,0.40046461,2462.9,2462.5,3.45111533]
[1751235877820,0.40046461,2462.9,2462.5,0.2024]
[1751235878021,0.55,2462.8,2462.5,3.45112687]
[1751235878238,0.55,2462.8,2462.5,0.2024]
[1751235878603,0.55,2462.9,2462.5,3.45112714]
[1751235878807,0.55,2462.9,2462.5,0.2024]
[1751235879009,4.27401596,2462.9,2462.5,0.2024]
[1751235879203,3.24837096,2462.8,2462.5,0.2024]
[1751235879414,3.24837096,2462.8,2462.0,0.002]
[1751235879415,0.55,2462.4,2462.0,1.989]
[1751235879704,0.55,2462.2,2462.1,0.2024]
[1751235880430,3.24907215,2462.3,2462.1,0.2024]
[1751235880431,0.55,2462.3,2462.1,0.2024]
[1751235880601,0.55,2462.2,2462.1,0.2024]
[1751235881006,0.55,2462.2,2462.0,0.002]
[1751235881331,3.79925876,2462.1,2462.0,0.002]
[1751235881531,1.3251,2462.1,2462.0,0.002]
[1751235882218,4.57435876,2462.1,2462.0,0.002]
[1751235882402,2.12768902,2462.1,2462.0,0.002]
[1751235883637,4.57435876,2462.1,2462.0,0.002]
[1751235883837,1.3251,2462.1,2462.0,0.002]
[1751235884135,4.57435876,2462.1,2462.0,0.002]
[1751235884343,1.3251,2462.1,2462.0,0.002]
[1751235884738,4.57435876,2462.1,2462.0,0.002]
[1751235885049,1.80277588,2462.1,2462.0,0.002]
[1751235885217,5.05203464,2462.1,2462.0,0.002]
[1751235885785,1.80277588,2462.1,2462.0,0.002]
[1751235885958,1.3251,2462.1,2462.0,0.002]
[1751235886614,0.55,2462.1,2462.0,0.002]
[1751235886821,0.8271,2462.4,2462.0,0.2044]
[1751235887020,0.55,2462.3,2462.0,3.45371982]
[1751235887250,0.55,2462.3,2462.0,0.2044]
[1751235887649,0.55,2462.3,2462.1,3.24916075]
[1751235887837,0.55,2462.3,2462.0,3.45373262]
[1751235888360,0.55,2462.3,2462.0,0.2044]
[1751235888829,0.55,2462.1,2462.0,0.002]
[1751235889777,0.55,2462.1,2462.0,3.25139073]
[1751235889958,0.55,2462.1,2462.0,0.2044]
[1751235890144,0.55,2462.1,2462.0,3.45379073]
[1751235890684,0.55,2462.1,2462.0,0.2044]
[1751235890885,0.55,2462.1,2462.0,3.45379073]
[1751235891248,0.8271,2462.4,2462.2,3.24911962]
[1751235891482,0.2024,2462.6,2462.2,0.2024]
[1751235891684,1.01333508,2462.6,2462.3,0.2024]
[1751235891853,0.55,2462.5,2462.3,0.2024]
[1751235892057,0.55,2462.2,2462.0,0.002]
[1751235892378,4.58942744,2462.2,2462.0,0.2044]
[1751235892572,0.001,2462.1,2462.0,0.2044]
[1751235896472,0.001,2462.1,2462.0,3.45379073]
[1751235897063,0.001,2462.1,2462.0,13.60579073]
[1751235897391,0.001,2462.1,2462.0,53.60579073]
[1751235897677,0.76712503,2463.4,2463.3,3.24767588]
[1751235897852,0.85303101,2464.1,2464.0,3.24675324]
[1751235898041,3.60032936,2465.5,2464.4,3.24622626]
[1751235898245,9.27297717,2465.9,2464.1,11.70606202]
[1751235898246,8.30410039,2467.0,2466.9,33.24293647]
[1751235898452,17.03852659,2468.9,2468.8,3.24044069]
[1751235898673,0.95095493,2470.3,2470.2,3.23860416]
[1751235898890,0.90095493,2470.3,2470.2,20.24495699]
[1751235899067,0.90095493,2470.3,2470.2,21.26999444]
[1751235899268,0.90095493,2470.3,2470.2,49.9751475]
[1751235899491,2.242,2472.0,2470.5,10.0]
[1751235899697,4.4780341,2472.0,2470.5,2.00626035]
[1751235899909,0.00540142,2472.4,2472.1,5.31842434]
[1751235900192,0.8011,2473.4,2470.4,13.5869608]
[1751235900193,2.4462,2472.3,2472.2,0.93831904]
[1751235900372,2.4462,2472.3,2471.0,3.2374319]
[1751235900373,21.02903124,2472.3,2471.0,3.2374319]
[1751235900571,21.02903124,2472.3,2471.2,3.23723185]
[1751235900572,12.594,2472.2,2471.2,3.23723185]
[1751235900895,12.594,2472.2,2470.3,3.47444203]
[1751235900896,8.83971184,2472.3,2471.5,15.91903072]
[1751235901061,8.83971184,2472.3,2471.6,2.426819]
[1751235901062,3.33097118,2472.2,2471.6,2.426819]
[1751235901262,10.147,2472.4,2471.6,2.426819]
[1751235901698,10.147,2472.4,2471.5,15.91903072]
[1751235901699,0.808,2472.1,2471.5,15.91903072]
[1751235901867,0.808,2472.1,2470.8,19.10283687]
[1751235901868,8.83971184,2471.3,2470.8,19.10283687]
[1751235902063,30.0,2471.9,2470.8,19.10283687]
[1751235902294,12.07665134,2471.5,2470.9,2.426819]
[1751235902603,8.83971184,2471.4,2470.9,2.426819]
[1751235902806,2.641,2471.3,2470.1,3.23872365]
[1751235903107,3.23688661,2471.6,2470.3,2.426819]
[1751235903310,8.83971184,2470.9,2469.4,2.426819]
[1751235903505,12.07873256,2469.9,2469.5,0.35747342]
[1751235903667,12.924,2469.8,2469.6,0.35747342]
[1751235903868,15.90003139,2469.8,2469.7,0.35748373]
[1751235904178,15.90003139,2469.8,2468.2,27.85830377]
[1751235904179,10.8305,2469.7,2468.2,27.85830377]
[1751235904400,2.787,2469.6,2468.3,0.21365508]
[1751235904694,8.83971184,2469.5,2468.4,0.21365508]
[1751235904895,3.24079338,2468.6,2468.5,0.21365508]
[1751235905112,3.24044069,2468.8,2467.9,0.21104369]
[1751235905113,2.72505736,2468.8,2467.9,0.21104369]
[1751235905279,3.2424367,2467.3,2466.8,20.69473994]
[1751235905463,3.24265847,2467.2,2466.8,20.69473994]
[1751235905668,3.24268981,2467.1,2467.0,26.48287194]
[1751235905903,7.0,2467.3,2467.0,26.48287194]
[1751235906510,3.2412109,2468.3,2467.0,26.48287194]
[1751235906695,8.402,2468.1,2467.0,26.48287194]
[1751235906898,3.24214177,2467.6,2467.0,26.48287194]
[1751235907196,5.77816299,2467.5,2467.0,26.48287194]
[1751235907394,3.24229062,2467.4,2467.1,24.14370855]
[1751235907598,2.786,2467.5,2467.1,24.14370855]
[1751235908097,0.2024,2468.0,2467.4,0.2024]
[1751235908267,3.242291,2467.4,2467.1,45.29086529]
[1751235908467,2.786,2467.3,2467.2,18.11176189]
[1751235908669,0.34438074,2468.0,2467.2,18.11176189]
[1751235908863,1.216256,2469.4,2467.2,18.11176189]
[1751235908864,3.24162243,2467.9,2467.8,15.09519546]
[1751235909064,3.24135975,2468.1,2467.8,15.29759546]
[1751235909297,3.24162243,2467.9,2467.8,15.29759546]
[1751235909995,0.2024,2468.3,2467.8,15.29759546]
[1751235910200,2.38126321,2468.2,2467.8,15.29759546]
[1751235910493,8.5864,2468.5,2468.1,17.33425968]
[1751235910494,0.2024,2468.5,2468.1,17.33425968]
[1751235910666,3.44323451,2468.5,2468.4,5.2766551]
[1751235910870,6.02683451,2468.5,2468.4,5.2766551]
[1751235911488,2.786,2468.5,2468.3,5.27476231]
[1751235911687,8.83971184,2469.7,2468.4,0.2024]
[1751235911898,2.785,2469.2,2469.0,3.0139621]
[1751235912125,2.535,2469.2,2469.0,2.26081865]
[1751235912397,3.23969027,2469.4,2469.1,2.61454335]
[1751235912597,6.02478455,2469.3,2469.2,0.90458588]
[1751235912797,3.23991576,2469.2,2469.1,0.2024]
[1751235912999,1.68124985,2469.4,2469.1,0.2024]
[1751235913213,6.02491576,2469.2,2469.1,0.2024]
[1751235913513,11.13,2469.2,2467.9,18.345]
[1751235913725,1.113,2469.1,2468.9,0.2024]
[1751235913866,3.2401782,2469.0,2468.9,0.2024]
[1751235914071,2.785,2469.0,2468.9,0.2024]
[1751235914271,6.0251782,2469.0,2468.9,0.2024]
[1751235914619,3.24082237,2468.6,2468.1,10.0]